Workbook

Sheet Wstęp
B1: Model bazuje na danych i informacjach otrzymanych od zlecającego oraz uzyskanych ze źródeł publicznych, jeżeli źródła te mogą być racjonalnie uznane za wiarygodne. Zakładamy, że wszelkie otrzymane dane i informacje dotyczące planowanych kosztów i przychodów są dokładne, kompletne, rzetelne oraz aktualne na moment przygotowywania Modelu. Nie jesteśmy zobowiązani do weryfikacji jakichkolwiek informacji lub dokumentów otrzymanych od zlecającego, w tym informacji dotyczących kosztów i przychodów, udzielonych pożyczek oraz inwestycji zrealizowanych, a także planowanych do realizacji. Zlecający potwierdza, że Model poprawnie odzwierciedla przekazane przez zlecającego dane, założenia i najlepszą wiedzę zlecającego. Zlecający rozumie, że zmiana jakiegokolwiek założenia, wartości lub odwołania może spowodować zmianę rezultatów Modelu. Prognozy finansowe otrzymane od zlecającego i założenia zawarte w Modelu nie stanowią zapewnienia osiągnięcia zakładanych w prognozach finansowych wyników finansowych. Model musi być prezentowany w całości i jest przygotowany jedynie w celach opisanych w umowie między zlecającym a zleceniobiorcą. Model nie może być rozpowszechniany do osób trzecich bez pisemnej zgody zleceniobiorcy.

Sheet Makro i swap
A2: ZAŁOŻENIA MAKROEKONOMICZNE | C2: 2022 | D2: =C2+1 -> 2023 | E2: =D2+1 -> 2024 | F2: 2025 | G2: 2026 | H2: 2027 | I2: 2028 | J2: 2029 | K2: 2030 | L2: 2031 | M2: 2032
A4: Inflacja | C4: 1.108 | D4: 1.09 | E4: 1.042 | F4: 1.03 | G4: 1.03 | H4: 1.03 | I4: 1.03 | J4: 1.03 | K4: 1.03 | L4: 1.03 | M4: 1.03
A5: Dynamika realnego wzrostu płac | C5: 1.03 | D5: 1.03 | E5: 1.03 | F5: 1.03 | G5: 1.03 | H5: 1.03 | I5: 1.03 | J5: 1.03 | K5: 1.03 | L5: 1.03 | M5: 1.03
A8: Stopy swap dla SGEI – Komisja Europejska | B8: Marża | C8: 0.01 | E8: https://ec.europa.eu/competition-policy/state-aid/legislation/sgei/swap-rate-proxies_en
A9: 1.07.2021–31.12.2021 | C9: 0.0254

Sheet Odpady
A2: Odpady | C2: Jednostka | F2: 2023 | G2: =F2+1 -> 2024 | H2: =G2+1 -> 2025 | I2: 2026 | J2: 2027 | K2: 2028 | L2: =K2+1 -> 2029 | M2: =L2+1 -> 2030 | N2: =M2+1 -> 2031 | O2: =N2+1 -> 2032
A4: kody odpadów | C4: tona | D4: 0 | F4: 0 | G4: 0 | H4: 0 | I4: 0 | J4: 0 | K4: 0 | L4: 0 | M4: 0 | N4: 0 | O4: 0
A5: 20 03 01 | C5: tona | D5: 0 | F5: 0 | G5: 0 | H5: 0 | I5: 0 | J5: 0 | K5: 0 | L5: 0 | M5: 0 | N5: 0 | O5: 0
A6: 20 03 07 | C6: tona | D6: 0 | F6: 0 | G6: 0 | H6: 0 | I6: 0 | J6: 0 | K6: 0 | L6: 0 | M6: 0 | N6: 0 | O6: 0
A7: 20 01 35, 20 01 36 | C7: tona | D7: 0 | F7: 0 | G7: 0 | H7: 0 | I7: 0 | J7: 0 | K7: 0 | L7: 0 | M7: 0 | N7: 0 | O7: 0
A8: 17 01 podgrupa | C8: tona | D8: 0 | F8: 0 | G8: 0 | H8: 0 | I8: 0 | J8: 0 | K8: 0 | L8: 0 | M8: 0 | N8: 0 | O8: 0
A9: 16 01 03 | C9: tona | D9: 0 | F9: 0 | G9: 0 | H9: 0 | I9: 0 | J9: 0 | K9: 0 | L9: 0 | M9: 0 | N9: 0 | O9: 0
A10: 20 03 99 | C10: tona | D10: 0 | F10: 0 | G10: 0 | H10: 0 | I10: 0 | J10: 0 | K10: 0 | L10: 0 | M10: 0 | N10: 0 | O10: 0
A11: 20 01 01 | C11: tona | D11: 0 | F11: 0 | G11: 0 | H11: 0 | I11: 0 | J11: 0 | K11: 0 | L11: 0 | M11: 0 | N11: 0 | O11: 0
A12: 20 01 02 | C12: tona | D12: 0 | F12: 0 | G12: 0 | H12: 0 | I12: 0 | J12: 0 | K12: 0 | L12: 0 | M12: 0 | N12: 0 | O12: 0
A13: 15 01 02 | C13: tona | D13: 0 | F13: 0 | G13: 0 | H13: 0 | I13: 0 | J13: 0 | K13: 0 | L13: 0 | M13: 0 | N13: 0 | O13: 0
A14: 20 01 40 | C14: tona | D14: 0 | F14: 0 | G14: 0 | H14: 0 | I14: 0 | J14: 0 | K14: 0 | L14: 0 | M14: 0 | N14: 0 | O14: 0
A15: inne | C15: tona | D15: 0 | F15: 0 | G15: 0 | H15: 0 | I15: 0 | J15: 0 | K15: 0 | L15: 0 | M15: 0 | N15: 0 | O15: 0

Sheet Prace interwencyjne
A1: Założenia do kalkulacji prac interwencyjnych
A2: Lp. | B2: Rodzaj usług | C2: Liczba | D2: Koszty bezpośrednie jednostkowe netto | E2: Koszty bezpośrednie ogółem netto | F2: Udział
A3: 1 | B3: Wynajem pojemników | C3: 0 | D3: 0 | E3: =C3*D3 -> 0 | F3: 0
A4: 2 | B4: Wynajem pracowników (liczba roboczogodzin) | C4: 0 | D4: 0 | E4: =C4*D4 -> 0 | F4: 0
A5: 3 | B5: Wynajem ładowarki (liczba motogodzin) | C5: 0 | D5: 0 | E5: 0 | F5: 0
A6: 4 | B6: Wynajem samochodu dostawczego (liczba kilometrów) | C6: 0 | D6: 0 | E6: 0 | F6: 0
A7: 5 | B7: Wynajem samochodu ciężarowego (liczba kilometrów) | C7: 0 | D7: 0 | E7: 0 | F7: 0
A8: 6 | B8: Razem | C8: - | D8: - | E8: =SUM(E3:E7) -> 0 | F8: 0

Sheet Koszty netto>>
B3: Przychody
B4: Koszty

Sheet Koszty netto_nieruch ogólnodost
A4: KOSZTY OPERACYJNE | C4: Jednostka | F4: 2023 | G4: =F4+1 -> 2024 | H4: =G4+1 -> 2025 | I4: 2026 | J4: 2027 | K4: 2028 | L4: =K4+1 -> 2029 | M4: =L4+1 -> 2030 | N4: =M4+1 -> 2031 | O4: =N4+1 -> 2032
A6: Koszty operacyjne | C6: PLN | D6: 0 | F6: 0 | G6: 0 | H6: 0 | I6: 0 | J6: 0 | K6: 0 | L6: 0 | M6: 0 | N6: 0 | O6: 0
A7: Amortyzacja | C7: PLN | D7: =SUM(F7:O7) -> 0 | F7: =IF(F22="",F17,F22) -> 0 | G7: =IF(G22="",G17,G22) -> 0 | H7: 0 | I7: 0 | J7: 0 | K7: 0 | L7: =IF(L22="",L17,L22) -> 0 | M7: 0 | N7: 0 | O7: 0
A8: Zużycie materiałów i energii | C8: PLN | D8: 0 | F8: 0 | G8: 0 | H8: 0 | I8: 0 | J8: 0 | K8: 0 | L8: 0 | M8: 0 | N8: 0 | O8: 0
A9: Usługi obce | C9: PLN | D9: 0 | F9: 0 | G9: 0 | H9: 0 | I9: 0 | J9: 0 | K9: 0 | L9: 0 | M9: 0 | N9: 0 | O9: 0
A10: Podatki i opłaty | C10: PLN | D10: =SUM(F10:O10) -> 0 | F10: =IF(F97="",F92,F97) -> 0 | G10: 0 | H10: 0 | I10: 0 | J10: 0 | K10: 0 | L10: =IF(L97="",L92,L97) -> 0 | M10: 0 | N10: 0 | O10: 0
A11: Wynagrodzenia oraz ubezpieczenia społeczne i inne świadczenia | C11: PLN | D11: 0 | F11: 0 | G11: 0 | H11: 0 | I11: 0 | J11: 0 | K11: 0 | L11: 0 | M11: 0 | N11: 0 | O11: 0
A12: Pozostałe koszty rodzajowe | C12: PLN | D12: 0 | F12: 0 | G12: 0 | H12: 0 | I12: 0 | J12: 0 | K12: 0 | L12: 0 | M12: 0 | N12: 0 | O12: 0
A13: Wartość sprzedanych towarów i materiałów | C13: PLN | D13: 0 | F13: =IF(F138="",F136,F138) -> 0 | G13: 0 | H13: 0 | I13: 0 | J13: 0 | K13: 0 | L13: =IF(L138="",L136,L138) -> 0 | M13: 0 | N13: 0 | O13: 0
A17: Amortyzacja – prognoza | C17: PLN | F17: =F18+F19 -> 0 | G17: =G18+G19 -> 0 | H17: 0 | I17: 0 | J17: 0 | K17: 0 | L17: =L18+L19 -> 0 | M17: 0 | N17: 0 | O17: 0
A18: Koszty bezpośrednie | C18: PLN
A19: Koszty pośrednie | C19: PLN
A20: Klucz podziałowy
A22: Amortyzacja – wartości rzeczywiste w danym roku | C22: PLN | F22: =IF(AND(F23="",F24=""),"",F23+F24) ->  | G22: =IF(AND(G23="",G24=""),"",G23+G24) ->  | L22: =IF(AND(L23="",L24=""),"",L23+L24) -> 
A23: Koszty bezpośrednie | C23: PLN
A24: Koszty pośrednie | C24: PLN
A28: Zużycie materiałów i energii – prognoza | C28: PLN | F28: 0 | G28: 0 | H28: 0 | I28: 0 | J28: 0 | K28: 0 | L28: 0 | M28: 0 | N28: 0 | O28: 0
A29: Koszty bezpośrednie | C29: PLN | F29: 0 | G29: 0 | H29: 0 | I29: 0 | J29: 0 | K29: 0 | L29: 0 | M29: 0 | N29: 0 | O29: 0
A30: Koszty pośrednie | C30: PLN | F30: 0 | G30: 0 | H30: 0 | I30: 0 | J30: 0 | K30: 0 | L30: 0 | M30: 0 | N30: 0 | O30: 0
A31: Klucz podziałowy | C31: PLN | F31: 0 | G31: 0 | H31: 0 | I31: 0 | J31: 0 | K31: 0 | L31: 0 | M31: 0 | N31: 0 | O31: 0
A33: Zużycie materiałów i energii – wartości rzeczywiste w danym roku | C33: PLN | F33: =IF(AND(F34="",F35=""),"",F34+F35) ->  | G33: =IF(AND(G34="",G35=""),"",G34+G35) ->  | L33: =IF(AND(L34="",L35=""),"",L34+L35) -> 
A34: Koszty bezpośrednie | C34: PLN
A35: Koszty pośrednie | C35: PLN
A37: Paliwo – samochód dostawczy
A38: Zużycie | C38: l/100 km | F38: 0 | G38: 0 | H38: 0 | I38: 0 | J38: 0 | K38: 0 | L38: 0 | M38: 0 | N38: 0 | O38: 0
A39: Liczba km | C39: km | F39: 0 | G39: 0 | H39: 0 | I39: 0 | J39: 0 | K39: 0 | L39: 0 | M39: 0 | N39: 0 | O39: 0
A40: Cena jednostkowa | C40: PLN/l | F40: 0 | G40: 0 | H40: =G40*'Makro i swap'!F4 -> 0 | I40: =H40*'Makro i swap'!G4 -> 0 | J40: =I40*'Makro i swap'!H4 -> 0 | K40: =J40*'Makro i swap'!I4 -> 0 | L40: =K40*'Makro i swap'!J4 -> 0 | M40: =L40*'Makro i swap'!K4 -> 0 | N40: =M40*'Makro i swap'!L4 -> 0 | O40: =N40*'Makro i swap'!M4 -> 0
A42: Paliwo – samochód ciężarowy
A43: Zużycie | C43: l/100 km | F43: 0 | G43: 0 | H43: 0 | I43: 0 | J43: 0 | K43: 0 | L43: 0 | M43: 0 | N43: 0 | O43: 0
A44: Liczba km | C44: km | F44: 0 | G44: 0 | H44: 0 | I44: 0 | J44: 0 | K44: 0 | L44: 0 | M44: 0 | N44: 0 | O44: 0
A45: Cena jednostkowa | C45: PLN/l | F45: =F40 -> 0 | G45: =G40 -> 0 | H45: 0 | I45: 0 | J45: 0 | K45: 0 | L45: =L40 -> 0 | M45: 0 | N45: 0 | O45: 0
A48: Usługi obce – prognoza | C48: PLN | F48: 0 | G48: 0 | H48: 0 | I48: 0 | J48: 0 | K48: 0 | L48: 0 | M48: 0 | N48: 0 | O48: 0
A49: Koszty bezpośrednie | C49: PLN | F49: 0 | G49: 0 | H49: 0 | I49: 0 | J49: 0 | K49: 0 | L49: 0 | M49: 0 | N49: 0 | O49: 0
A50: Koszty pośrednie | C50: PLN | F50: 0 | G50: 0 | H50: 0 | I50: 0 | J50: 0 | K50: 0 | L50: 0 | M50: 0 | N50: 0 | O50: 0
A51: Klucz podziałowy | F51: 0 | G51: 0 | H51: 0 | I51: 0 | J51: 0 | K51: 0 | L51: 0 | M51: 0 | N51: 0 | O51: 0
A53: Usługi obce – wartości rzeczywiste w danym roku | C53: PLN | G53: =IF(AND(G54="",G55=""),"",G54+G55) ->  | L53: =IF(AND(L54="",L55=""),"",L54+L55) -> 
A54: Koszty bezpośrednie | C54: PLN
A55: Koszty pośrednie | C55: PLN
A57: Zagospodarowanie odpadów – stawka jednostkowa
A58: 20 03 01 | C58: PLN/Mg | F58: 0 | G58: =F58*'Makro i swap'!E$4 -> 0 | H58: =G58*'Makro i swap'!F$4 -> 0 | I58: =H58*'Makro i swap'!G$4 -> 0 | J58: =I58*'Makro i swap'!H$4 -> 0 | K58: =J58*'Makro i swap'!I$4 -> 0 | L58: =K58*'Makro i swap'!J$4 -> 0 | M58: =L58*'Makro i swap'!K$4 -> 0 | N58: =M58*'Makro i swap'!L$4 -> 0 | O58: =N58*'Makro i swap'!M$4 -> 0
A59: 20 03 07 | C59: PLN/Mg | F59: 0 | G59: =F59*'Makro i swap'!E$4 -> 0 | H59: =G59*'Makro i swap'!F$4 -> 0 | I59: =H59*'Makro i swap'!G$4 -> 0 | J59: =I59*'Makro i swap'!H$4 -> 0 | K59: =J59*'Makro i swap'!I$4 -> 0 | L59: =K59*'Makro i swap'!J$4 -> 0 | M59: =L59*'Makro i swap'!K$4 -> 0 | N59: =M59*'Makro i swap'!L$4 -> 0 | O59: =N59*'Makro i swap'!M$4 -> 0
A60: 20 01 35, 20 01 36 | C60: PLN/Mg | F60: 0 | G60: =F60*'Makro i swap'!E$4 -> 0 | H60: =G60*'Makro i swap'!F$4 -> 0 | I60: =H60*'Makro i swap'!G$4 -> 0 | J60: =I60*'Makro i swap'!H$4 -> 0 | K60: =J60*'Makro i swap'!I$4 -> 0 | L60: =K60*'Makro i swap'!J$4 -> 0 | M60: =L60*'Makro i swap'!K$4 -> 0 | N60: =M60*'Makro i swap'!L$4 -> 0 | O60: =N60*'Makro i swap'!M$4 -> 0
A61: 17 01 podgrupa | C61: PLN/Mg | F61: 0 | G61: =F61*'Makro i swap'!E$4 -> 0 | H61: =G61*'Makro i swap'!F$4 -> 0 | I61: =H61*'Makro i swap'!G$4 -> 0 | J61: =I61*'Makro i swap'!H$4 -> 0 | K61: =J61*'Makro i swap'!I$4 -> 0 | L61: =K61*'Makro i swap'!J$4 -> 0 | M61: =L61*'Makro i swap'!K$4 -> 0 | N61: =M61*'Makro i swap'!L$4 -> 0 | O61: =N61*'Makro i swap'!M$4 -> 0
A62: 16 01 03 | C62: PLN/Mg | F62: 0 | G62: =F62*'Makro i swap'!E$4 -> 0 | H62: =G62*'Makro i swap'!F$4 -> 0 | I62: =H62*'Makro i swap'!G$4 -> 0 | J62: =I62*'Makro i swap'!H$4 -> 0 | K62: =J62*'Makro i swap'!I$4 -> 0 | L62: =K62*'Makro i swap'!J$4 -> 0 | M62: =L62*'Makro i swap'!K$4 -> 0 | N62: =M62*'Makro i swap'!L$4 -> 0 | O62: =N62*'Makro i swap'!M$4 -> 0
A63: 20 03 99 | C63: PLN/Mg | F63: 0 | G63: =F63*'Makro i swap'!E$4 -> 0 | H63: =G63*'Makro i swap'!F$4 -> 0 | I63: =H63*'Makro i swap'!G$4 -> 0 | J63: =I63*'Makro i swap'!H$4 -> 0 | K63: =J63*'Makro i swap'!I$4 -> 0 | L63: =K63*'Makro i swap'!J$4 -> 0 | M63: =L63*'Makro i swap'!K$4 -> 0 | N63: =M63*'Makro i swap'!L$4 -> 0 | O63: =N63*'Makro i swap'!M$4 -> 0
A64: 20 01 01 | C64: PLN/Mg | F64: 0 | G64: =F64*'Makro i swap'!E$4 -> 0 | H64: =G64*'Makro i swap'!F$4 -> 0 | I64: =H64*'Makro i swap'!G$4 -> 0 | J64: =I64*'Makro i swap'!H$4 -> 0 | K64: =J64*'Makro i swap'!I$4 -> 0 | L64: =K64*'Makro i swap'!J$4 -> 0 | M64: =L64*'Makro i swap'!K$4 -> 0 | N64: =M64*'Makro i swap'!L$4 -> 0 | O64: =N64*'Makro i swap'!M$4 -> 0
A65: 20 01 02 | C65: PLN/Mg | F65: 0 | G65: =F65*'Makro i swap'!E$4 -> 0 | H65: =G65*'Makro i swap'!F$4 -> 0 | I65: =H65*'Makro i swap'!G$4 -> 0 | J65: =I65*'Makro i swap'!H$4 -> 0 | K65: =J65*'Makro i swap'!I$4 -> 0 | L65: =K65*'Makro i swap'!J$4 -> 0 | M65: =L65*'Makro i swap'!K$4 -> 0 | N65: =M65*'Makro i swap'!L$4 -> 0 | O65: =N65*'Makro i swap'!M$4 -> 0
A66: 15 01 02 | C66: PLN/Mg | F66: 0 | G66: =F66*'Makro i swap'!E$4 -> 0 | H66: =G66*'Makro i swap'!F$4 -> 0 | I66: =H66*'Makro i swap'!G$4 -> 0 | J66: =I66*'Makro i swap'!H$4 -> 0 | K66: =J66*'Makro i swap'!I$4 -> 0 | L66: =K66*'Makro i swap'!J$4 -> 0 | M66: =L66*'Makro i swap'!K$4 -> 0 | N66: =M66*'Makro i swap'!L$4 -> 0 | O66: =N66*'Makro i swap'!M$4 -> 0
A67: 20 01 40 | C67: PLN/Mg | F67: 0 | G67: =F67*'Makro i swap'!E$4 -> 0 | H67: =G67*'Makro i swap'!F$4 -> 0 | I67: =H67*'Makro i swap'!G$4 -> 0 | J67: =I67*'Makro i swap'!H$4 -> 0 | K67: =J67*'Makro i swap'!I$4 -> 0 | L67: =K67*'Makro i swap'!J$4 -> 0 | M67: =L67*'Makro i swap'!K$4 -> 0 | N67: =M67*'Makro i swap'!L$4 -> 0 | O67: =N67*'Makro i swap'!M$4 -> 0
A68: Inne | C68: PLN/Mg | F68: 0 | G68: 0 | H68: =G68*'Makro i swap'!F$4 -> 0 | I68: =H68*'Makro i swap'!G$4 -> 0 | J68: =I68*'Makro i swap'!H$4 -> 0 | K68: =J68*'Makro i swap'!I$4 -> 0 | L68: =K68*'Makro i swap'!J$4 -> 0 | M68: =L68*'Makro i swap'!K$4 -> 0 | N68: =M68*'Makro i swap'!L$4 -> 0 | O68: =N68*'Makro i swap'!M$4 -> 0
A70: Zagospodarowanie odpadów – ilości
A71: 20 03 01 | C71: Mg | F71: 0 | G71: 0 | H71: 0 | I71: 0 | J71: 0 | K71: 0 | L71: 0 | M71: 0 | N71: 0 | O71: 0
A72: 20 03 07 | C72: Mg | F72: 0 | G72: 0 | H72: 0 | I72: 0 | J72: 0 | K72: 0 | L72: 0 | M72: 0 | N72: 0 | O72: 0
A73: 20 01 35, 20 01 36 | C73: Mg | F73: 0 | G73: 0 | H73: 0 | I73: 0 | J73: 0 | K73: 0 | L73: 0 | M73: 0 | N73: 0 | O73: 0
A74: 17 01 podgrupa | C74: Mg | F74: 0 | G74: 0 | H74: 0 | I74: 0 | J74: 0 | K74: 0 | L74: 0 | M74: 0 | N74: 0 | O74: 0
A75: 16 01 03 | C75: Mg | F75: 0 | G75: 0 | H75: 0 | I75: 0 | J75: 0 | K75: 0 | L75: 0 | M75: 0 | N75: 0 | O75: 0
A76: 20 03 99 | C76: Mg | F76: 0 | G76: 0 | H76: 0 | I76: 0 | J76: 0 | K76: 0 | L76: 0 | M76: 0 | N76: 0 | O76: 0
A77: 20 01 01 | C77: Mg | F77: 0 | G77: 0 | H77: 0 | I77: 0 | J77: 0 | K77: 0 | L77: 0 | M77: 0 | N77: 0 | O77: 0
A78: 20 01 02 | C78: Mg | F78: 0 | G78: 0 | H78: 0 | I78: 0 | J78: 0 | K78: 0 | L78: 0 | M78: 0 | N78: 0 | O78: 0
A79: 15 01 02 | C79: Mg | F79: 0 | G79: 0 | H79: 0 | I79: 0 | J79: 0 | K79: 0 | L79: 0 | M79: 0 | N79: 0 | O79: 0
A80: 20 01 40 | C80: Mg | F80: 0 | G80: 0 | H80: 0 | I80: 0 | J80: 0 | K80: 0 | L80: 0 | M80: 0 | N80: 0 | O80: 0
A81: Inne | C81: Mg | F81: 0 | G81: 0 | H81: 0 | I81: 0 | J81: 0 | K81: 0 | L81: 0 | M81: 0 | N81: 0 | O81: 0
A83: Przeglądy – samochód dostawczy
A84: Cena jednostkowa | C84: PLN/przegląd | F84: 0 | G84: =F84*'Makro i swap'!E4 -> 0 | H84: =G84*'Makro i swap'!F4 -> 0 | I84: =H84*'Makro i swap'!G4 -> 0 | J84: =I84*'Makro i swap'!H4 -> 0 | K84: =J84*'Makro i swap'!I4 -> 0 | L84: =K84*'Makro i swap'!J4 -> 0 | M84: =L84*'Makro i swap'!K4 -> 0 | N84: =M84*'Makro i swap'!L4 -> 0 | O84: =N84*'Makro i swap'!M4 -> 0
A85: Ilość | C85: przegląd | F85: 0 | G85: 6 | H85: 6 | I85: 6 | J85: 6 | K85: 6 | L85: 6 | M85: 6 | N85: 6 | O85: 6
A87: Przeglądy – samochód ciężarowy
A88: Cena jednostkowa | C88: PLN/przegląd | F88: 0 | G88: =F88*'Makro i swap'!E4 -> 0 | H88: =G88*'Makro i swap'!F4 -> 0 | I88: =H88*'Makro i swap'!G4 -> 0 | J88: =I88*'Makro i swap'!H4 -> 0 | K88: =J88*'Makro i swap'!I4 -> 0 | L88: =K88*'Makro i swap'!J4 -> 0 | M88: =L88*'Makro i swap'!K4 -> 0 | N88: =M88*'Makro i swap'!L4 -> 0 | O88: =N88*'Makro i swap'!M4 -> 0
A89: Ilość | C89: przegląd | F89: 0 | G89: 0 | H89: 0 | I89: 0 | J89: 0 | K89: 0 | L89: 0 | M89: 0 | N89: 0 | O89: 0
A92: Podatki i opłaty – prognoza | C92: PLN | F92: =F93+F94 -> 0 | G92: =G93+G94 -> 0 | H92: =H93+H94 -> 0 | I92: 0 | J92: 0 | K92: 0 | L92: =L93+L94 -> 0 | M92: 0 | N92: 0 | O92: 0
A93: Koszty bezpośrednie | C93: PLN
A94: Koszty pośrednie | C94: PLN
A95: Klucz podziałowy
A97: Podatki i opłaty – wartości rzeczywiste w danym roku | C97: PLN | H97: =IF(AND(H98="",H99=""),"",H98+H99) ->  | L97: =IF(AND(L98="",L99=""),"",L98+L99) -> 
A98: Koszty bezpośrednie | C98: PLN
A99: Koszty pośrednie | C99: PLN
A104: Wynagrodzenia oraz ubezpieczenia społeczne i inne świadczenia – prognoza | C104: PLN | F104: 0 | G104: 0 | H104: 0 | I104: 0 | J104: 0 | K104: 0 | L104: 0 | M104: 0 | N104: =N105+N106 -> 0 | O104: 0
A105: Koszty bezpośrednie | C105: PLN | F105: 0 | G105: 0 | H105: 0 | I105: 0 | J105: 0 | K105: 0 | L105: 0 | M105: 0 | N105: 0 | O105: 0
A106: Koszty pośrednie | C106: PLN | F106: 0 | G106: 0 | H106: =H105*H107 -> 0 | I106: 0 | J106: 0 | K106: 0 | L106: 0 | M106: 0 | N106: =N105*N107 -> 0 | O106: 0
A107: Klucz podziałowy | F107: 0 | G107: 0 | H107: 0 | I107: 0 | J107: 0 | K107: 0 | L107: 0 | M107: 0 | N107: 0 | O107: 0
A109: Wynagrodzenia oraz ubezpieczenia społeczne i inne świadczenia – wartości rzeczywiste w danym roku | C109: PLN | F109: =IF(AND(F110="",F111=""),"",F110+F111) ->  | G109: =IF(AND(G110="",G111=""),"",G110+G111) ->  | L109: =IF(AND(L110="",L111=""),"",L110+L111) -> 
A110: Koszty bezpośrednie | C110: PLN
A111: Koszty pośrednie | C111: PLN
A113: Liczba roboczogodzin | C113: godz. | F113: 0 | G113: 0 | H113: 0 | I113: 0 | J113: 0 | K113: 0 | L113: 0 | M113: 0 | N113: 0 | O113: 0
A114: Stawka jednostkowa | C114: PLN/godz. | F114: 0 | G114: =F114*'Makro i swap'!E4*'Makro i swap'!E5 -> 0 | H114: =G114*'Makro i swap'!F4*'Makro i swap'!F5 -> 0 | I114: =H114*'Makro i swap'!G4*'Makro i swap'!G5 -> 0 | J114: =I114*'Makro i swap'!H4*'Makro i swap'!H5 -> 0 | K114: =J114*'Makro i swap'!I4*'Makro i swap'!I5 -> 0 | L114: =K114*'Makro i swap'!J4*'Makro i swap'!J5 -> 0 | M114: =L114*'Makro i swap'!K4*'Makro i swap'!K5 -> 0 | N114: =M114*'Makro i swap'!L4*'Makro i swap'!L5 -> 0 | O114: =N114*'Makro i swap'!M4*'Makro i swap'!M5 -> 0
A117: Pozostałe koszty rodzajowe – prognoza | C117: PLN | F117: 0 | G117: 0 | H117: 0 | I117: 0 | J117: 0 | K117: 0 | L117: 0 | M117: 0 | N117: 0 | O117: 0
A118: Koszty bezpośrednie | C118: PLN | F118: 0 | G118: 0 | H118: 0 | I118: 0 | J118: 0 | K118: 0 | L118: 0 | M118: 0 | N118: 0 | O118: 0
A119: Koszty pośrednie | C119: PLN | F119: 0 | G119: 0 | H119: 0 | I119: 0 | J119: 0 | K119: 0 | L119: =L118*L120 -> 0 | M119: 0 | N119: 0 | O119: 0
A120: Klucz podziałowy | F120: 0 | G120: 0 | H120: 0 | I120: 0 | J120: 0 | K120: 0 | L120: 0 | M120: 0 | N120: 0 | O120: 0
A122: Pozostałe koszty rodzajowe – wartości rzeczywiste w danym roku | C122: PLN | F122: =IF(AND(F123="",F124=""),"",F123+F124) ->  | G122: =IF(AND(G123="",G124=""),"",G123+G124) ->  | L122: =IF(AND(L123="",L124=""),"",L123+L124) -> 
A123: Koszty bezpośrednie | C123: PLN
A124: Koszty pośrednie | C124: PLN
A126: Leasing
A127: Samochód dostawczy | F127: 0 | G127: 0 | H127: 0 | I127: 0 | J127: 0 | K127: 0 | L127: 0 | M127: 0 | N127: 0 | O127: 0
A128: Samochód ciężarowy | F128: 0 | G128: 0 | H128: 0 | I128: 0 | J128: 0 | K128: 0 | L128: 0 | M128: 0 | N128: 0 | O128: 0
A130: Inne usługi związane z działaniami interwencyjnymi | F130: =F131+F132 -> 0 | G130: 0 | H130: 0 | I130: 0 | J130: 0 | K130: 0 | L130: 0 | M130: 0 | N130: 0 | O130: 0
A131: Koszty bezpośrednie | C131: PLN | F131: ='Prace interwencyjne'!$E$8 -> 0 | G131: =F131*'Makro i swap'!E4 -> 0 | H131: =G131*'Makro i swap'!F4 -> 0 | I131: =H131*'Makro i swap'!G4 -> 0 | J131: =I131*'Makro i swap'!H4 -> 0 | K131: =J131*'Makro i swap'!I4 -> 0 | L131: =K131*'Makro i swap'!J4 -> 0 | M131: =L131*'Makro i swap'!K4 -> 0 | N131: =M131*'Makro i swap'!L4 -> 0 | O131: =N131*'Makro i swap'!M4 -> 0
A136: Wartość sprzedanych towarów i materiałów – prognoza | C136: PLN
A138: Wartość sprzedanych towarów i materiałów – wartości rzeczywiste w danym roku | C138: PLN
A144: PRZYCHODY BEZPOŚREDNIO POWIĄZANE Z ZADANIEM | C144: Jednostka | F144: =F152 -> 2023 | G144: =F144+1 -> 2024 | H144: =G144+1 -> 2025 | I144: 2026 | J144: 2027 | K144: 2028 | L144: =K144+1 -> 2029 | M144: =L144+1 -> 2030 | N144: =M144+1 -> 2031 | O144: =N144+1 -> 2032
A146: Wyszczególnienie | C146: PLN
A147: Wyszczególnienie | C147: PLN
A148: Przychody razem – PROGNOZA | C148: PLN | F148: =F146+F147 -> 0 | G148: =G146+G147 -> 0 | H148: 0 | I148: 0 | J148: 0 | K148: 0 | L148: =L146+L147 -> 0 | M148: 0 | N148: 0 | O148: 0
A149: Przychody razem – WYKONANIE | C149: PLN
A152: UZYSKANE PRZYSPORZENIA | C152: Jednostka | F152: =F4 -> 2023 | G152: =F152+1 -> 2024 | H152: =G152+1 -> 2025 | I152: 2026 | J152: 2027 | K152: 2028 | L152: =K152+1 -> 2029 | M152: =L152+1 -> 2030 | N152: =M152+1 -> 2031 | O152: =N152+1 -> 2032
A154: Dokapitalizowanie i inne przysporzenia ze środków publicznych związane z realizacją Zadania – PROGNOZA | C154: PLN
A155: Dokapitalizowanie i inne przysporzenia ze środków publicznych związane z realizacją Zadania – WYKONANIE | C155: PLN
A158: PRZYCHODY I KOSZTY FINANSOWE | F158: =F152 -> 2023 | G158: =F158+1 -> 2024 | H158: =G158+1 -> 2025 | I158: 2026 | J158: 2027 | K158: 2028 | L158: =K158+1 -> 2029 | M158: =L158+1 -> 2030 | N158: =M158+1 -> 2031 | O158: =N158+1 -> 2032
A160: Przychody finansowe | C160: PLN
A161: Koszty finansowe | C161: PLN
A162: Pozostałe przychody operacyjne | C162: PLN
A163: Pozostałe koszty operacyjne | C163: PLN
A166: KARY | C166: Jednostka | F166: =F158 -> 2023 | G166: =F166+1 -> 2024 | H166: 2025 | I166: 2026 | J166: 2027 | K166: 2028 | L166: =K166+1 -> 2029 | M166: =L166+1 -> 2030 | N166: =M166+1 -> 2031 | O166: =N166+1 -> 2032
A168: Naliczone i zapłacone kary z tytułu nienależytej realizacji Zadania | C168: PLN

Sheet Rekompensata>>

Sheet Rekompensata ogółem
A2: WYNAGRODZENIE | C2: Jednostka | F2: ='Koszty netto_nieruch ogólnodost'!F4 -> 2023 | G2: =F2+1 -> 2024 | H2: 2025 | I2: 2026 | J2: 2027 | K2: 2028 | L2: =K2+1 -> 2029 | M2: =L2+1 -> 2030 | N2: =M2+1 -> 2031 | O2: =N2+1 -> 2032 | P2: RAZEM
A4: Uzasadnione koszty netto | C4: PLN | F4: 0 | G4: =G6+G7-G8-G9-G10+G11 -> 0 | H4: 0 | I4: 0 | J4: 0 | K4: 0 | L4: =L6+L7-L8-L9-L10+L11 -> 0 | M4: 0 | N4: 0 | O4: 0 | P4: =SUM(F4:O4) -> 0
A6: Koszty operacyjne | C6: PLN | F6: ='Koszty netto_nieruch ogólnodost'!F6 -> 0 | G6: ='Koszty netto_nieruch ogólnodost'!G6 -> 0 | H6: ='Koszty netto_nieruch ogólnodost'!H6 -> 0 | I6: ='Koszty netto_nieruch ogólnodost'!I6 -> 0 | J6: ='Koszty netto_nieruch ogólnodost'!J6 -> 0 | K6: ='Koszty netto_nieruch ogólnodost'!K6 -> 0 | L6: ='Koszty netto_nieruch ogólnodost'!L6 -> 0 | M6: ='Koszty netto_nieruch ogólnodost'!M6 -> 0 | N6: ='Koszty netto_nieruch ogólnodost'!N6 -> 0 | O6: ='Koszty netto_nieruch ogólnodost'!O6 -> 0 | P6: =SUM(F6:O6) -> 0
A7: Koszty finansowe oraz pozostałe koszty operacyjne | C7: PLN | F7: ='Koszty netto_nieruch ogólnodost'!F161+'Koszty netto_nieruch ogólnodost'!F163 -> 0 | G7: ='Koszty netto_nieruch ogólnodost'!G161+'Koszty netto_nieruch ogólnodost'!G163 -> 0 | H7: ='Koszty netto_nieruch ogólnodost'!H161+'Koszty netto_nieruch ogólnodost'!H163 -> 0 | I7: ='Koszty netto_nieruch ogólnodost'!I161+'Koszty netto_nieruch ogólnodost'!I163 -> 0 | J7: ='Koszty netto_nieruch ogólnodost'!J161+'Koszty netto_nieruch ogólnodost'!J163 -> 0 | K7: ='Koszty netto_nieruch ogólnodost'!K161+'Koszty netto_nieruch ogólnodost'!K163 -> 0 | L7: ='Koszty netto_nieruch ogólnodost'!L161+'Koszty netto_nieruch ogólnodost'!L163 -> 0 | M7: ='Koszty netto_nieruch ogólnodost'!M161+'Koszty netto_nieruch ogólnodost'!M163 -> 0 | N7: ='Koszty netto_nieruch ogólnodost'!N161+'Koszty netto_nieruch ogólnodost'!N163 -> 0 | O7: ='Koszty netto_nieruch ogólnodost'!O161+'Koszty netto_nieruch ogólnodost'!O163 -> 0 | P7: =SUM(F7:O7) -> 0
A8: Inne przysporzenia ze środków publicznych | C8: PLN | F8: =IF('Koszty netto_nieruch ogólnodost'!F155="",'Koszty netto_nieruch ogólnodost'!F154,'Koszty netto_nieruch ogólnodost'!F155) -> 0 | G8: =IF('Koszty netto_nieruch ogólnodost'!G155="",'Koszty netto_nieruch ogólnodost'!G154,'Koszty netto_nieruch ogólnodost'!G155) -> 0 | H8: =IF('Koszty netto_nieruch ogólnodost'!H155="",'Koszty netto_nieruch ogólnodost'!H154,'Koszty netto_nieruch ogólnodost'!H155) -> 0 | I8: =IF('Koszty netto_nieruch ogólnodost'!I155="",'Koszty netto_nieruch ogólnodost'!I154,'Koszty netto_nieruch ogólnodost'!I155) -> 0 | J8: =IF('Koszty netto_nieruch ogólnodost'!J155="",'Koszty netto_nieruch ogólnodost'!J154,'Koszty netto_nieruch ogólnodost'!J155) -> 0 | K8: =IF('Koszty netto_nieruch ogólnodost'!K155="",'Koszty netto_nieruch ogólnodost'!K154,'Koszty netto_nieruch ogólnodost'!K155) -> 0 | L8: =IF('Koszty netto_nieruch ogólnodost'!L155="",'Koszty netto_nieruch ogólnodost'!L154,'Koszty netto_nieruch ogólnodost'!L155) -> 0 | M8: =IF('Koszty netto_nieruch ogólnodost'!M155="",'Koszty netto_nieruch ogólnodost'!M154,'Koszty netto_nieruch ogólnodost'!M155) -> 0 | N8: =IF('Koszty netto_nieruch ogólnodost'!N155="",'Koszty netto_nieruch ogólnodost'!N154,'Koszty netto_nieruch ogólnodost'!N155) -> 0 | O8: =IF('Koszty netto_nieruch ogólnodost'!O155="",'Koszty netto_nieruch ogólnodost'!O154,'Koszty netto_nieruch ogólnodost'!O155) -> 0 | P8: 0
A9: Przychody finansowe oraz pozostałe przychody operacyjne | C9: PLN | F9: ='Koszty netto_nieruch ogólnodost'!F160+'Koszty netto_nieruch ogólnodost'!F162 -> 0 | G9: ='Koszty netto_nieruch ogólnodost'!G160+'Koszty netto_nieruch ogólnodost'!G162 -> 0 | H9: ='Koszty netto_nieruch ogólnodost'!H160+'Koszty netto_nieruch ogólnodost'!H162 -> 0 | I9: ='Koszty netto_nieruch ogólnodost'!I160+'Koszty netto_nieruch ogólnodost'!I162 -> 0 | J9: ='Koszty netto_nieruch ogólnodost'!J160+'Koszty netto_nieruch ogólnodost'!J162 -> 0 | K9: ='Koszty netto_nieruch ogólnodost'!K160+'Koszty netto_nieruch ogólnodost'!K162 -> 0 | L9: ='Koszty netto_nieruch ogólnodost'!L160+'Koszty netto_nieruch ogólnodost'!L162 -> 0 | M9: ='Koszty netto_nieruch ogólnodost'!M160+'Koszty netto_nieruch ogólnodost'!M162 -> 0 | N9: ='Koszty netto_nieruch ogólnodost'!N160+'Koszty netto_nieruch ogólnodost'!N162 -> 0 | O9: ='Koszty netto_nieruch ogólnodost'!O160+'Koszty netto_nieruch ogólnodost'!O162 -> 0 | P9: 0
A10: Przychody bezpośrednio powiązane z Zadaniem | C10: PLN | F10: =IF('Koszty netto_nieruch ogólnodost'!F149="",'Koszty netto_nieruch ogólnodost'!F148,'Koszty netto_nieruch ogólnodost'!F149) -> 0 | G10: =IF('Koszty netto_nieruch ogólnodost'!G149="",'Koszty netto_nieruch ogólnodost'!G148,'Koszty netto_nieruch ogólnodost'!G149) -> 0 | H10: =IF('Koszty netto_nieruch ogólnodost'!H149="",'Koszty netto_nieruch ogólnodost'!H148,'Koszty netto_nieruch ogólnodost'!H149) -> 0 | I10: =IF('Koszty netto_nieruch ogólnodost'!I149="",'Koszty netto_nieruch ogólnodost'!I148,'Koszty netto_nieruch ogólnodost'!I149) -> 0 | J10: =IF('Koszty netto_nieruch ogólnodost'!J149="",'Koszty netto_nieruch ogólnodost'!J148,'Koszty netto_nieruch ogólnodost'!J149) -> 0 | K10: =IF('Koszty netto_nieruch ogólnodost'!K149="",'Koszty netto_nieruch ogólnodost'!K148,'Koszty netto_nieruch ogólnodost'!K149) -> 0 | L10: =IF('Koszty netto_nieruch ogólnodost'!L149="",'Koszty netto_nieruch ogólnodost'!L148,'Koszty netto_nieruch ogólnodost'!L149) -> 0 | M10: =IF('Koszty netto_nieruch ogólnodost'!M149="",'Koszty netto_nieruch ogólnodost'!M148,'Koszty netto_nieruch ogólnodost'!M149) -> 0 | N10: =IF('Koszty netto_nieruch ogólnodost'!N149="",'Koszty netto_nieruch ogólnodost'!N148,'Koszty netto_nieruch ogólnodost'!N149) -> 0 | O10: =IF('Koszty netto_nieruch ogólnodost'!O149="",'Koszty netto_nieruch ogólnodost'!O148,'Koszty netto_nieruch ogólnodost'!O149) -> 0 | P10: 0
A11: Podatek dochodowy | C11: PLN | F11: 0 | G11: 0 | H11: 0 | I11: 0 | J11: 0 | K11: 0 | L11: 0 | M11: 0 | N11: 0 | O11: 0 | P11: 0
E13: 19%*rozsądny zysk
A14: Rozsądny zysk | C14: PLN | F14: 0 | G14: 0 | H14: 0 | I14: 0 | J14: 0 | K14: 0 | L14: 0 | M14: 0 | N14: 0 | O14: 0 | P14: 0
A16: Należna Rekompensata z uwzględnieniem Rozsądnego zysku – prognoza | C16: PLN | D16: 1.01264463 | F16: 0 | G16: =G4+G14 -> 0 | H16: 0 | I16: 0 | J16: 0 | K16: 0 | L16: =L4+L14 -> 0 | M16: 0 | N16: 0 | O16: 0 | P16: =SUM(F16:K16) -> 0
A18: Przychody od Dysponenta – odpady | C18: PLN | F18: =SUMPRODUCT(F92:F102,F45:F55) -> 0 | G18: =SUMPRODUCT(G92:G102,G45:G55) -> 0 | H18: =SUMPRODUCT(H92:H102,H45:H55) -> 0 | I18: =SUMPRODUCT(I92:I102,I45:I55) -> 0 | J18: 0 | K18: 0 | L18: =SUMPRODUCT(L92:L102,L45:L55) -> 0 | M18: 0 | N18: 0 | O18: 0 | P18: =SUM(F18:K18) -> 0
A20: Przychody od Dysponenta – pozostałe usługi | C20: PLN | F20: 0 | G20: 0 | H20: 0 | I20: 0 | J20: 0 | K20: 0 | L20: 0 | M20: 0 | N20: 0 | O20: 0 | P20: 0
B21: % | K21: %
A23: Maksymalna wartość Rozsądnego zysku | C23: ='Makro i swap'!C9+'Makro i swap'!C8 -> 0.0354
A25: Weryfikacja Rozsądnego zysku | C25: Jednostka | F25: =F2 -> 2023 | G25: =F25+1 -> 2024 | H25: =G25+1 -> 2025 | I25: =H25+1 -> 2026 | J25: =I25+1 -> 2027 | K25: =J25+1 -> 2028 | L25: =K25+1 -> 2029 | M25: =L25+1 -> 2030 | N25: =M25+1 -> 2031 | O25: =N25+1 -> 2032
A26: Kapitał własny na początek okresu | F26: 0 | G26: 0 | H26: =G26*'Makro i swap'!F4 -> 0 | I26: =H26*'Makro i swap'!G4 -> 0 | J26: =I26*'Makro i swap'!H4 -> 0 | K26: =J26*'Makro i swap'!I4 -> 0 | L26: =K26*'Makro i swap'!J4 -> 0 | M26: =L26*'Makro i swap'!K4 -> 0 | N26: =M26*'Makro i swap'!L4 -> 0 | O26: =N26*'Makro i swap'!M4 -> 0
A27: Kapitał własny na koniec okresu | F27: 0 | G27: 0 | H27: 0 | I27: 0 | J27: 0 | K27: 0 | L27: 0 | M27: 0 | N27: 0 | O27: 0
A28: Średni kapitał własny Spółki | F28: =(F26+F27)/2 -> 0 | G28: =(G26+G27)/2 -> 0 | H28: 0 | I28: 0 | J28: 0 | K28: 0 | L28: =(L26+L27)/2 -> 0 | M28: 0 | N28: 0 | O28: 0
F29: 0
A30: Przychody ze sprzedaży ogółem | F30: 0 | G30: =F30*'Makro i swap'!E4 -> 0 | H30: =G30*'Makro i swap'!F4 -> 0 | I30: =H30*'Makro i swap'!G4 -> 0 | J30: =I30*'Makro i swap'!H4 -> 0 | K30: =J30*'Makro i swap'!I4 -> 0 | L30: =K30*'Makro i swap'!J4 -> 0 | M30: =L30*'Makro i swap'!K4 -> 0 | N30: =M30*'Makro i swap'!L4 -> 0 | O30: =N30*'Makro i swap'!M4 -> 0
A31: Przychody z tyt. realizacji Zadania | F31: =F18+F10+F9+F20 -> 0 | G31: =G18+G10+G9+G20 -> 0 | H31: 0 | I31: 0 | J31: 0 | K31: 0 | L31: =L18+L10+L9+L20 -> 0 | M31: 0 | N31: 0 | O31: 0
A32: Udział przychodowy | F32: 0 | G32: 0 | H32: 0 | I32: 0 | J32: 0 | K32: 0 | L32: 0 | M32: 0 | N32: 0 | O32: 0
A34: Kapitał własny będący podstawą kalkulacji stopy zwrotu z kapitału własnego | F34: =F28*F32 -> 0 | G34: 0 | H34: 0 | I34: 0 | J34: 0 | K34: 0 | L34: 0 | M34: 0 | N34: 0 | O34: 0
A35: Kwota Rozsądnego zysku | F35: =F14 -> 0 | G35: =G14 -> 0 | H35: 0 | I35: 0 | J35: 0 | K35: 0 | L35: 0 | M35: 0 | N35: 0 | O35: 0
A36: Stopa zwrotu z kapitału własnego | F36: 0 | G36: 0 | H36: 0 | I36: 0 | J36: 0 | K36: 0 | L36: 0 | M36: 0 | N36: 0 | O36: 0
F37: =F36*100 -> 0 | G37: =G36*100 -> 0 | H37: 0 | I37: 0 | J37: 0 | K37: 0 | L37: =L36*100 -> 0 | M37: 0 | N37: 0 | O37: 0
A38: Czy Rozsądny zysk jest nadmierny? | F38: =IF(F36<=$C$23,"NIE","TAK") -> NIE | G38: 0 | H38: 0 | I38: 0 | J38: 0 | K38: 0 | L38: 0 | M38: 0 | N38: 0 | O38: 0
A39: Udział Rozsądnego zysku dla zagospodarowania odpadów | F39: 0 | G39: 0 | H39: 0 | I39: 0 | J39: 0 | K39: 0 | L39: 0 | M39: 0 | N39: 0 | O39: 0
A40: Udział Rozsądnego zysku dla prac interwencyjnych | F40: 0 | G40: 0 | H40: 0 | I40: 0 | J40: 0 | K40: 0 | L40: 0 | M40: 0 | N40: 0 | O40: 0
A41: Kalkulacja stawek | C41: Jednostka | F41: =F25 -> 2023 | G41: =F41+1 -> 2024 | H41: =G41+1 -> 2025 | I41: =H41+1 -> 2026 | J41: =I41+1 -> 2027 | K41: =J41+1 -> 2028 | L41: =K41+1 -> 2029 | M41: 2030 | N41: 2031 | O41: 2032
A42: =#REF!*100 -> 
A43: Należna rekompensata z Rozsądnym zyskiem dla zagospodarowania odpadów | C43: PLN | F43: 0 | G43: 0 | H43: 0 | I43: 0 | J43: 0 | K43: 0 | L43: 0 | M43: 0 | N43: 0 | O43: 0
A44: Należna rekompensata z Rozsądnym zyskiem dla prac interwencyjnych | C44: PLN | F44: 0 | G44: 0 | H44: 0 | I44: 0 | J44: 0 | K44: 0 | L44: 0 | M44: 0 | N44: 0 | O44: 0
A45: Ilość odpadów 20 03 01 | C45: Mg | F45: 0 | G45: 0 | H45: 0 | I45: 0 | J45: 0 | K45: 0 | L45: 0 | M45: 0 | N45: 0 | O45: 0
A46: Ilość odpadów 20 03 07 | C46: Mg | F46: 0 | G46: 0 | H46: 0 | I46: 0 | J46: 0 | K46: 0 | L46: 0 | M46: 0 | N46: 0 | O46: 0
A47: Ilość odpadów 20 01 35, 20 01 36 | C47: Mg | F47: 0 | G47: 0 | H47: 0 | I47: 0 | J47: 0 | K47: =Odpady!K7 -> 0 | L47: 0 | M47: 0 | N47: 0 | O47: 0
A48: Ilość odpadów 17 01 podgrupa | C48: Mg | F48: 0 | G48: 0 | H48: 0 | I48: 0 | J48: 0 | K48: 0 | L48: 0 | M48: 0 | N48: 0 | O48: 0
A49: Ilość odpadów 16 01 03 | C49: Mg | F49: 0 | G49: 0 | H49: 0 | I49: 0 | J49: 0 | K49: 0 | L49: 0 | M49: 0 | N49: 0 | O49: 0
A50: Ilość odpadów 20 03 99 | C50: Mg | F50: 0 | G50: 0 | H50: 0 | I50: 0 | J50: 0 | K50: 0 | L50: 0 | M50: 0 | N50: 0 | O50: 0
A51: Ilość odpadów 20 01 01 | C51: Mg | F51: 0 | G51: 0 | H51: 0 | I51: 0 | J51: 0 | K51: 0 | L51: 0 | M51: 0 | N51: 0 | O51: 0
A52: Ilość odpadów 20 01 02 | C52: Mg | F52: 0 | G52: 0 | H52: 0 | I52: 0 | J52: 0 | K52: 0 | L52: 0 | M52: 0 | N52: 0 | O52: 0
A53: Ilość odpadów 15 01 02 | C53: Mg | F53: 0 | G53: 0 | H53: 0 | I53: 0 | J53: 0 | K53: 0 | L53: 0 | M53: 0 | N53: 0 | O53: 0
A54: Ilość odpadów 20 01 40 | C54: Mg | F54: 0 | G54: 0 | H54: 0 | I54: 0 | J54: 0 | K54: 0 | L54: 0 | M54: 0 | N54: 0 | O54: 0
A55: Inne | C55: Mg | F55: 0 | G55: 0 | H55: 0 | I55: 0 | J55: 0 | K55: 0 | L55: 0 | M55: 0 | N55: 0 | O55: 0
A56: Ilość odpadów RAZEM | C56: Mg | F56: 0 | G56: 0 | H56: 0 | I56: 0 | J56: 0 | K56: 0 | L56: 0 | M56: 0 | N56: 0 | O56: 0
A58: Udział odpadów
A59: 20 03 01 | C59: % | F59: 0 | G59: 0 | H59: 0 | I59: 0 | J59: 0 | K59: 0 | L59: 0 | M59: 0 | N59: 0 | O59: 0
A60: 20 03 07 | C60: % | F60: 0 | G60: 0 | H60: 0 | I60: 0 | J60: 0 | K60: 0 | L60: 0 | M60: 0 | N60: 0 | O60: 0
A61: 20 01 35, 20 01 36 | C61: % | F61: 0 | G61: 0 | H61: 0 | I61: 0 | J61: 0 | K61: 0 | L61: 0 | M61: 0 | N61: 0 | O61: 0
A62: 17 01 podgrupa | C62: % | F62: 0 | G62: 0 | H62: 0 | I62: 0 | J62: 0 | K62: 0 | L62: 0 | M62: 0 | N62: 0 | O62: 0
A63: 16 01 03 | C63: % | F63: 0 | G63: 0 | H63: 0 | I63: 0 | J63: 0 | K63: 0 | L63: 0 | M63: 0 | N63: 0 | O63: 0
A64: 20 03 99 | C64: % | F64: 0 | G64: 0 | H64: 0 | I64: 0 | J64: 0 | K64: 0 | L64: 0 | M64: 0 | N64: 0 | O64: 0
A65: 20 01 01 | C65: % | F65: 0 | G65: 0 | H65: 0 | I65: 0 | J65: 0 | K65: 0 | L65: 0 | M65: 0 | N65: 0 | O65: 0
A66: 20 01 02 | C66: % | F66: 0 | G66: 0 | H66: 0 | I66: 0 | J66: 0 | K66: 0 | L66: 0 | M66: 0 | N66: 0 | O66: 0
A67: 15 01 02 | C67: % | F67: 0 | G67: 0 | H67: 0 | I67: 0 | J67: 0 | K67: 0 | L67: 0 | M67: 0 | N67: 0 | O67: 0
A68: 20 01 40 | C68: % | F68: 0 | G68: 0 | H68: 0 | I68: 0 | J68: 0 | K68: 0 | L68: 0 | M68: 0 | N68: 0 | O68: 0
A69: Inne | C69: % | F69: 0 | G69: 0 | H69: 0 | I69: 0 | J69: 0 | K69: 0 | L69: 0 | M69: 0 | N69: 0 | O69: 0
K70: 0
A71: Należna rekompensata według kodu odpadów
A72: 20 03 01 | C72: PLN | F72: =(F$43-SUMPRODUCT('Koszty netto_nieruch ogólnodost'!F$58:F$68,'Koszty netto_nieruch ogólnodost'!F$71:F$81))*F59+'Koszty netto_nieruch ogólnodost'!F58*'Koszty netto_nieruch ogólnodost'!F71 -> 0 | G72: =(G$43-SUMPRODUCT('Koszty netto_nieruch ogólnodost'!G$58:G$68,'Koszty netto_nieruch ogólnodost'!G$71:G$81))*G59+'Koszty netto_nieruch ogólnodost'!G58*'Koszty netto_nieruch ogólnodost'!G71 -> 0 | H72: =(H$43-SUMPRODUCT('Koszty netto_nieruch ogólnodost'!H$58:H$68,'Koszty netto_nieruch ogólnodost'!H$71:H$81))*H59+'Koszty netto_nieruch ogólnodost'!H58*'Koszty netto_nieruch ogólnodost'!H71 -> 0 | I72: =(I$43-SUMPRODUCT('Koszty netto_nieruch ogólnodost'!I$58:I$68,'Koszty netto_nieruch ogólnodost'!I$71:I$81))*I59+'Koszty netto_nieruch ogólnodost'!I58*'Koszty netto_nieruch ogólnodost'!I71 -> 0 | J72: =(J$43-SUMPRODUCT('Koszty netto_nieruch ogólnodost'!J$58:J$68,'Koszty netto_nieruch ogólnodost'!J$71:J$81))*J59+'Koszty netto_nieruch ogólnodost'!J58*'Koszty netto_nieruch ogólnodost'!J71 -> 0 | K72: =(K$43-SUMPRODUCT('Koszty netto_nieruch ogólnodost'!K$58:K$68,'Koszty netto_nieruch ogólnodost'!K$71:K$81))*K59+'Koszty netto_nieruch ogólnodost'!K58*'Koszty netto_nieruch ogólnodost'!K71 -> 0 | L72: =(L$43-SUMPRODUCT('Koszty netto_nieruch ogólnodost'!L$58:L$68,'Koszty netto_nieruch ogólnodost'!L$71:L$81))*L59+'Koszty netto_nieruch ogólnodost'!L58*'Koszty netto_nieruch ogólnodost'!L71 -> 0 | M72: =(M$43-SUMPRODUCT('Koszty netto_nieruch ogólnodost'!M$58:M$68,'Koszty netto_nieruch ogólnodost'!M$71:M$81))*M59+'Koszty netto_nieruch ogólnodost'!M58*'Koszty netto_nieruch ogólnodost'!M71 -> 0 | N72: =(N$43-SUMPRODUCT('Koszty netto_nieruch ogólnodost'!N$58:N$68,'Koszty netto_nieruch ogólnodost'!N$71:N$81))*N59+'Koszty netto_nieruch ogólnodost'!N58*'Koszty netto_nieruch ogólnodost'!N71 -> 0 | O72: =(O$43-SUMPRODUCT('Koszty netto_nieruch ogólnodost'!O$58:O$68,'Koszty netto_nieruch ogólnodost'!O$71:O$81))*O59+'Koszty netto_nieruch ogólnodost'!O58*'Koszty netto_nieruch ogólnodost'!O71 -> 0
A73: 20 03 07 | C73: PLN | F73: =(F$43-SUMPRODUCT('Koszty netto_nieruch ogólnodost'!F$58:F$68,'Koszty netto_nieruch ogólnodost'!F$71:F$81))*F60+'Koszty netto_nieruch ogólnodost'!F59*'Koszty netto_nieruch ogólnodost'!F72 -> 0 | G73: =(G$43-SUMPRODUCT('Koszty netto_nieruch ogólnodost'!G$58:G$68,'Koszty netto_nieruch ogólnodost'!G$71:G$81))*G60+'Koszty netto_nieruch ogólnodost'!G59*'Koszty netto_nieruch ogólnodost'!G72 -> 0 | H73: =(H$43-SUMPRODUCT('Koszty netto_nieruch ogólnodost'!H$58:H$68,'Koszty netto_nieruch ogólnodost'!H$71:H$81))*H60+'Koszty netto_nieruch ogólnodost'!H59*'Koszty netto_nieruch ogólnodost'!H72 -> 0 | I73: =(I$43-SUMPRODUCT('Koszty netto_nieruch ogólnodost'!I$58:I$68,'Koszty netto_nieruch ogólnodost'!I$71:I$81))*I60+'Koszty netto_nieruch ogólnodost'!I59*'Koszty netto_nieruch ogólnodost'!I72 -> 0 | J73: =(J$43-SUMPRODUCT('Koszty netto_nieruch ogólnodost'!J$58:J$68,'Koszty netto_nieruch ogólnodost'!J$71:J$81))*J60+'Koszty netto_nieruch ogólnodost'!J59*'Koszty netto_nieruch ogólnodost'!J72 -> 0 | K73: =(K$43-SUMPRODUCT('Koszty netto_nieruch ogólnodost'!K$58:K$68,'Koszty netto_nieruch ogólnodost'!K$71:K$81))*K60+'Koszty netto_nieruch ogólnodost'!K59*'Koszty netto_nieruch ogólnodost'!K72 -> 0 | L73: =(L$43-SUMPRODUCT('Koszty netto_nieruch ogólnodost'!L$58:L$68,'Koszty netto_nieruch ogólnodost'!L$71:L$81))*L60+'Koszty netto_nieruch ogólnodost'!L59*'Koszty netto_nieruch ogólnodost'!L72 -> 0 | M73: =(M$43-SUMPRODUCT('Koszty netto_nieruch ogólnodost'!M$58:M$68,'Koszty netto_nieruch ogólnodost'!M$71:M$81))*M60+'Koszty netto_nieruch ogólnodost'!M59*'Koszty netto_nieruch ogólnodost'!M72 -> 0 | N73: =(N$43-SUMPRODUCT('Koszty netto_nieruch ogólnodost'!N$58:N$68,'Koszty netto_nieruch ogólnodost'!N$71:N$81))*N60+'Koszty netto_nieruch ogólnodost'!N59*'Koszty netto_nieruch ogólnodost'!N72 -> 0 | O73: =(O$43-SUMPRODUCT('Koszty netto_nieruch ogólnodost'!O$58:O$68,'Koszty netto_nieruch ogólnodost'!O$71:O$81))*O60+'Koszty netto_nieruch ogólnodost'!O59*'Koszty netto_nieruch ogólnodost'!O72 -> 0
A74: 20 01 35, 20 01 36 | C74: PLN | F74: =(F$43-SUMPRODUCT('Koszty netto_nieruch ogólnodost'!F$58:F$68,'Koszty netto_nieruch ogólnodost'!F$71:F$81))*F61+'Koszty netto_nieruch ogólnodost'!F60*'Koszty netto_nieruch ogólnodost'!F73 -> 0 | G74: =(G$43-SUMPRODUCT('Koszty netto_nieruch ogólnodost'!G$58:G$68,'Koszty netto_nieruch ogólnodost'!G$71:G$81))*G61+'Koszty netto_nieruch ogólnodost'!G60*'Koszty netto_nieruch ogólnodost'!G73 -> 0 | H74: =(H$43-SUMPRODUCT('Koszty netto_nieruch ogólnodost'!H$58:H$68,'Koszty netto_nieruch ogólnodost'!H$71:H$81))*H61+'Koszty netto_nieruch ogólnodost'!H60*'Koszty netto_nieruch ogólnodost'!H73 -> 0 | I74: =(I$43-SUMPRODUCT('Koszty netto_nieruch ogólnodost'!I$58:I$68,'Koszty netto_nieruch ogólnodost'!I$71:I$81))*I61+'Koszty netto_nieruch ogólnodost'!I60*'Koszty netto_nieruch ogólnodost'!I73 -> 0 | J74: =(J$43-SUMPRODUCT('Koszty netto_nieruch ogólnodost'!J$58:J$68,'Koszty netto_nieruch ogólnodost'!J$71:J$81))*J61+'Koszty netto_nieruch ogólnodost'!J60*'Koszty netto_nieruch ogólnodost'!J73 -> 0 | K74: =(K$43-SUMPRODUCT('Koszty netto_nieruch ogólnodost'!K$58:K$68,'Koszty netto_nieruch ogólnodost'!K$71:K$81))*K61+'Koszty netto_nieruch ogólnodost'!K60*'Koszty netto_nieruch ogólnodost'!K73 -> 0 | L74: =(L$43-SUMPRODUCT('Koszty netto_nieruch ogólnodost'!L$58:L$68,'Koszty netto_nieruch ogólnodost'!L$71:L$81))*L61+'Koszty netto_nieruch ogólnodost'!L60*'Koszty netto_nieruch ogólnodost'!L73 -> 0 | M74: =(M$43-SUMPRODUCT('Koszty netto_nieruch ogólnodost'!M$58:M$68,'Koszty netto_nieruch ogólnodost'!M$71:M$81))*M61+'Koszty netto_nieruch ogólnodost'!M60*'Koszty netto_nieruch ogólnodost'!M73 -> 0 | N74: =(N$43-SUMPRODUCT('Koszty netto_nieruch ogólnodost'!N$58:N$68,'Koszty netto_nieruch ogólnodost'!N$71:N$81))*N61+'Koszty netto_nieruch ogólnodost'!N60*'Koszty netto_nieruch ogólnodost'!N73 -> 0 | O74: =(O$43-SUMPRODUCT('Koszty netto_nieruch ogólnodost'!O$58:O$68,'Koszty netto_nieruch ogólnodost'!O$71:O$81))*O61+'Koszty netto_nieruch ogólnodost'!O60*'Koszty netto_nieruch ogólnodost'!O73 -> 0
A75: 17 01 podgrupa | C75: PLN | F75: =(F$43-SUMPRODUCT('Koszty netto_nieruch ogólnodost'!F$58:F$68,'Koszty netto_nieruch ogólnodost'!F$71:F$81))*F62+'Koszty netto_nieruch ogólnodost'!F61*'Koszty netto_nieruch ogólnodost'!F74 -> 0 | G75: =(G$43-SUMPRODUCT('Koszty netto_nieruch ogólnodost'!G$58:G$68,'Koszty netto_nieruch ogólnodost'!G$71:G$81))*G62+'Koszty netto_nieruch ogólnodost'!G61*'Koszty netto_nieruch ogólnodost'!G74 -> 0 | H75: =(H$43-SUMPRODUCT('Koszty netto_nieruch ogólnodost'!H$58:H$68,'Koszty netto_nieruch ogólnodost'!H$71:H$81))*H62+'Koszty netto_nieruch ogólnodost'!H61*'Koszty netto_nieruch ogólnodost'!H74 -> 0 | I75: =(I$43-SUMPRODUCT('Koszty netto_nieruch ogólnodost'!I$58:I$68,'Koszty netto_nieruch ogólnodost'!I$71:I$81))*I62+'Koszty netto_nieruch ogólnodost'!I61*'Koszty netto_nieruch ogólnodost'!I74 -> 0 | J75: =(J$43-SUMPRODUCT('Koszty netto_nieruch ogólnodost'!J$58:J$68,'Koszty netto_nieruch ogólnodost'!J$71:J$81))*J62+'Koszty netto_nieruch ogólnodost'!J61*'Koszty netto_nieruch ogólnodost'!J74 -> 0 | K75: =(K$43-SUMPRODUCT('Koszty netto_nieruch ogólnodost'!K$58:K$68,'Koszty netto_nieruch ogólnodost'!K$71:K$81))*K62+'Koszty netto_nieruch ogólnodost'!K61*'Koszty netto_nieruch ogólnodost'!K74 -> 0 | L75: =(L$43-SUMPRODUCT('Koszty netto_nieruch ogólnodost'!L$58:L$68,'Koszty netto_nieruch ogólnodost'!L$71:L$81))*L62+'Koszty netto_nieruch ogólnodost'!L61*'Koszty netto_nieruch ogólnodost'!L74 -> 0 | M75: =(M$43-SUMPRODUCT('Koszty netto_nieruch ogólnodost'!M$58:M$68,'Koszty netto_nieruch ogólnodost'!M$71:M$81))*M62+'Koszty netto_nieruch ogólnodost'!M61*'Koszty netto_nieruch ogólnodost'!M74 -> 0 | N75: =(N$43-SUMPRODUCT('Koszty netto_nieruch ogólnodost'!N$58:N$68,'Koszty netto_nieruch ogólnodost'!N$71:N$81))*N62+'Koszty netto_nieruch ogólnodost'!N61*'Koszty netto_nieruch ogólnodost'!N74 -> 0 | O75: =(O$43-SUMPRODUCT('Koszty netto_nieruch ogólnodost'!O$58:O$68,'Koszty netto_nieruch ogólnodost'!O$71:O$81))*O62+'Koszty netto_nieruch ogólnodost'!O61*'Koszty netto_nieruch ogólnodost'!O74 -> 0
A76: 16 01 03 | C76: PLN | F76: =(F$43-SUMPRODUCT('Koszty netto_nieruch ogólnodost'!F$58:F$68,'Koszty netto_nieruch ogólnodost'!F$71:F$81))*F63+'Koszty netto_nieruch ogólnodost'!F62*'Koszty netto_nieruch ogólnodost'!F75 -> 0 | G76: =(G$43-SUMPRODUCT('Koszty netto_nieruch ogólnodost'!G$58:G$68,'Koszty netto_nieruch ogólnodost'!G$71:G$81))*G63+'Koszty netto_nieruch ogólnodost'!G62*'Koszty netto_nieruch ogólnodost'!G75 -> 0 | H76: =(H$43-SUMPRODUCT('Koszty netto_nieruch ogólnodost'!H$58:H$68,'Koszty netto_nieruch ogólnodost'!H$71:H$81))*H63+'Koszty netto_nieruch ogólnodost'!H62*'Koszty netto_nieruch ogólnodost'!H75 -> 0 | I76: =(I$43-SUMPRODUCT('Koszty netto_nieruch ogólnodost'!I$58:I$68,'Koszty netto_nieruch ogólnodost'!I$71:I$81))*I63+'Koszty netto_nieruch ogólnodost'!I62*'Koszty netto_nieruch ogólnodost'!I75 -> 0 | J76: =(J$43-SUMPRODUCT('Koszty netto_nieruch ogólnodost'!J$58:J$68,'Koszty netto_nieruch ogólnodost'!J$71:J$81))*J63+'Koszty netto_nieruch ogólnodost'!J62*'Koszty netto_nieruch ogólnodost'!J75 -> 0 | K76: =(K$43-SUMPRODUCT('Koszty netto_nieruch ogólnodost'!K$58:K$68,'Koszty netto_nieruch ogólnodost'!K$71:K$81))*K63+'Koszty netto_nieruch ogólnodost'!K62*'Koszty netto_nieruch ogólnodost'!K75 -> 0 | L76: =(L$43-SUMPRODUCT('Koszty netto_nieruch ogólnodost'!L$58:L$68,'Koszty netto_nieruch ogólnodost'!L$71:L$81))*L63+'Koszty netto_nieruch ogólnodost'!L62*'Koszty netto_nieruch ogólnodost'!L75 -> 0 | M76: =(M$43-SUMPRODUCT('Koszty netto_nieruch ogólnodost'!M$58:M$68,'Koszty netto_nieruch ogólnodost'!M$71:M$81))*M63+'Koszty netto_nieruch ogólnodost'!M62*'Koszty netto_nieruch ogólnodost'!M75 -> 0 | N76: =(N$43-SUMPRODUCT('Koszty netto_nieruch ogólnodost'!N$58:N$68,'Koszty netto_nieruch ogólnodost'!N$71:N$81))*N63+'Koszty netto_nieruch ogólnodost'!N62*'Koszty netto_nieruch ogólnodost'!N75 -> 0 | O76: =(O$43-SUMPRODUCT('Koszty netto_nieruch ogólnodost'!O$58:O$68,'Koszty netto_nieruch ogólnodost'!O$71:O$81))*O63+'Koszty netto_nieruch ogólnodost'!O62*'Koszty netto_nieruch ogólnodost'!O75 -> 0
A77: 20 03 99 | C77: PLN | F77: =(F$43-SUMPRODUCT('Koszty netto_nieruch ogólnodost'!F$58:F$68,'Koszty netto_nieruch ogólnodost'!F$71:F$81))*F64+'Koszty netto_nieruch ogólnodost'!F63*'Koszty netto_nieruch ogólnodost'!F76 -> 0 | G77: =(G$43-SUMPRODUCT('Koszty netto_nieruch ogólnodost'!G$58:G$68,'Koszty netto_nieruch ogólnodost'!G$71:G$81))*G64+'Koszty netto_nieruch ogólnodost'!G63*'Koszty netto_nieruch ogólnodost'!G76 -> 0 | H77: =(H$43-SUMPRODUCT('Koszty netto_nieruch ogólnodost'!H$58:H$68,'Koszty netto_nieruch ogólnodost'!H$71:H$81))*H64+'Koszty netto_nieruch ogólnodost'!H63*'Koszty netto_nieruch ogólnodost'!H76 -> 0 | I77: =(I$43-SUMPRODUCT('Koszty netto_nieruch ogólnodost'!I$58:I$68,'Koszty netto_nieruch ogólnodost'!I$71:I$81))*I64+'Koszty netto_nieruch ogólnodost'!I63*'Koszty netto_nieruch ogólnodost'!I76 -> 0 | J77: =(J$43-SUMPRODUCT('Koszty netto_nieruch ogólnodost'!J$58:J$68,'Koszty netto_nieruch ogólnodost'!J$71:J$81))*J64+'Koszty netto_nieruch ogólnodost'!J63*'Koszty netto_nieruch ogólnodost'!J76 -> 0 | K77: =(K$43-SUMPRODUCT('Koszty netto_nieruch ogólnodost'!K$58:K$68,'Koszty netto_nieruch ogólnodost'!K$71:K$81))*K64+'Koszty netto_nieruch ogólnodost'!K63*'Koszty netto_nieruch ogólnodost'!K76 -> 0 | L77: =(L$43-SUMPRODUCT('Koszty netto_nieruch ogólnodost'!L$58:L$68,'Koszty netto_nieruch ogólnodost'!L$71:L$81))*L64+'Koszty netto_nieruch ogólnodost'!L63*'Koszty netto_nieruch ogólnodost'!L76 -> 0 | M77: =(M$43-SUMPRODUCT('Koszty netto_nieruch ogólnodost'!M$58:M$68,'Koszty netto_nieruch ogólnodost'!M$71:M$81))*M64+'Koszty netto_nieruch ogólnodost'!M63*'Koszty netto_nieruch ogólnodost'!M76 -> 0 | N77: =(N$43-SUMPRODUCT('Koszty netto_nieruch ogólnodost'!N$58:N$68,'Koszty netto_nieruch ogólnodost'!N$71:N$81))*N64+'Koszty netto_nieruch ogólnodost'!N63*'Koszty netto_nieruch ogólnodost'!N76 -> 0 | O77: =(O$43-SUMPRODUCT('Koszty netto_nieruch ogólnodost'!O$58:O$68,'Koszty netto_nieruch ogólnodost'!O$71:O$81))*O64+'Koszty netto_nieruch ogólnodost'!O63*'Koszty netto_nieruch ogólnodost'!O76 -> 0
A78: 20 01 01 | C78: PLN | F78: =(F$43-SUMPRODUCT('Koszty netto_nieruch ogólnodost'!F$58:F$68,'Koszty netto_nieruch ogólnodost'!F$71:F$81))*F65+'Koszty netto_nieruch ogólnodost'!F64*'Koszty netto_nieruch ogólnodost'!F77 -> 0 | G78: =(G$43-SUMPRODUCT('Koszty netto_nieruch ogólnodost'!G$58:G$68,'Koszty netto_nieruch ogólnodost'!G$71:G$81))*G65+'Koszty netto_nieruch ogólnodost'!G64*'Koszty netto_nieruch ogólnodost'!G77 -> 0 | H78: =(H$43-SUMPRODUCT('Koszty netto_nieruch ogólnodost'!H$58:H$68,'Koszty netto_nieruch ogólnodost'!H$71:H$81))*H65+'Koszty netto_nieruch ogólnodost'!H64*'Koszty netto_nieruch ogólnodost'!H77 -> 0 | I78: =(I$43-SUMPRODUCT('Koszty netto_nieruch ogólnodost'!I$58:I$68,'Koszty netto_nieruch ogólnodost'!I$71:I$81))*I65+'Koszty netto_nieruch ogólnodost'!I64*'Koszty netto_nieruch ogólnodost'!I77 -> 0 | J78: =(J$43-SUMPRODUCT('Koszty netto_nieruch ogólnodost'!J$58:J$68,'Koszty netto_nieruch ogólnodost'!J$71:J$81))*J65+'Koszty netto_nieruch ogólnodost'!J64*'Koszty netto_nieruch ogólnodost'!J77 -> 0 | K78: =(K$43-SUMPRODUCT('Koszty netto_nieruch ogólnodost'!K$58:K$68,'Koszty netto_nieruch ogólnodost'!K$71:K$81))*K65+'Koszty netto_nieruch ogólnodost'!K64*'Koszty netto_nieruch ogólnodost'!K77 -> 0 | L78: =(L$43-SUMPRODUCT('Koszty netto_nieruch ogólnodost'!L$58:L$68,'Koszty netto_nieruch ogólnodost'!L$71:L$81))*L65+'Koszty netto_nieruch ogólnodost'!L64*'Koszty netto_nieruch ogólnodost'!L77 -> 0 | M78: =(M$43-SUMPRODUCT('Koszty netto_nieruch ogólnodost'!M$58:M$68,'Koszty netto_nieruch ogólnodost'!M$71:M$81))*M65+'Koszty netto_nieruch ogólnodost'!M64*'Koszty netto_nieruch ogólnodost'!M77 -> 0 | N78: =(N$43-SUMPRODUCT('Koszty netto_nieruch ogólnodost'!N$58:N$68,'Koszty netto_nieruch ogólnodost'!N$71:N$81))*N65+'Koszty netto_nieruch ogólnodost'!N64*'Koszty netto_nieruch ogólnodost'!N77 -> 0 | O78: =(O$43-SUMPRODUCT('Koszty netto_nieruch ogólnodost'!O$58:O$68,'Koszty netto_nieruch ogólnodost'!O$71:O$81))*O65+'Koszty netto_nieruch ogólnodost'!O64*'Koszty netto_nieruch ogólnodost'!O77 -> 0
A79: 20 01 02 | C79: PLN | F79: =(F$43-SUMPRODUCT('Koszty netto_nieruch ogólnodost'!F$58:F$68,'Koszty netto_nieruch ogólnodost'!F$71:F$81))*F66+'Koszty netto_nieruch ogólnodost'!F65*'Koszty netto_nieruch ogólnodost'!F78 -> 0 | G79: =(G$43-SUMPRODUCT('Koszty netto_nieruch ogólnodost'!G$58:G$68,'Koszty netto_nieruch ogólnodost'!G$71:G$81))*G66+'Koszty netto_nieruch ogólnodost'!G65*'Koszty netto_nieruch ogólnodost'!G78 -> 0 | H79: =(H$43-SUMPRODUCT('Koszty netto_nieruch ogólnodost'!H$58:H$68,'Koszty netto_nieruch ogólnodost'!H$71:H$81))*H66+'Koszty netto_nieruch ogólnodost'!H65*'Koszty netto_nieruch ogólnodost'!H78 -> 0 | I79: =(I$43-SUMPRODUCT('Koszty netto_nieruch ogólnodost'!I$58:I$68,'Koszty netto_nieruch ogólnodost'!I$71:I$81))*I66+'Koszty netto_nieruch ogólnodost'!I65*'Koszty netto_nieruch ogólnodost'!I78 -> 0 | J79: =(J$43-SUMPRODUCT('Koszty netto_nieruch ogólnodost'!J$58:J$68,'Koszty netto_nieruch ogólnodost'!J$71:J$81))*J66+'Koszty netto_nieruch ogólnodost'!J65*'Koszty netto_nieruch ogólnodost'!J78 -> 0 | K79: =(K$43-SUMPRODUCT('Koszty netto_nieruch ogólnodost'!K$58:K$68,'Koszty netto_nieruch ogólnodost'!K$71:K$81))*K66+'Koszty netto_nieruch ogólnodost'!K65*'Koszty netto_nieruch ogólnodost'!K78 -> 0 | L79: =(L$43-SUMPRODUCT('Koszty netto_nieruch ogólnodost'!L$58:L$68,'Koszty netto_nieruch ogólnodost'!L$71:L$81))*L66+'Koszty netto_nieruch ogólnodost'!L65*'Koszty netto_nieruch ogólnodost'!L78 -> 0 | M79: =(M$43-SUMPRODUCT('Koszty netto_nieruch ogólnodost'!M$58:M$68,'Koszty netto_nieruch ogólnodost'!M$71:M$81))*M66+'Koszty netto_nieruch ogólnodost'!M65*'Koszty netto_nieruch ogólnodost'!M78 -> 0 | N79: =(N$43-SUMPRODUCT('Koszty netto_nieruch ogólnodost'!N$58:N$68,'Koszty netto_nieruch ogólnodost'!N$71:N$81))*N66+'Koszty netto_nieruch ogólnodost'!N65*'Koszty netto_nieruch ogólnodost'!N78 -> 0 | O79: =(O$43-SUMPRODUCT('Koszty netto_nieruch ogólnodost'!O$58:O$68,'Koszty netto_nieruch ogólnodost'!O$71:O$81))*O66+'Koszty netto_nieruch ogólnodost'!O65*'Koszty netto_nieruch ogólnodost'!O78 -> 0
A80: 15 01 02 | C80: PLN | F80: =(F$43-SUMPRODUCT('Koszty netto_nieruch ogólnodost'!F$58:F$68,'Koszty netto_nieruch ogólnodost'!F$71:F$81))*F67+'Koszty netto_nieruch ogólnodost'!F66*'Koszty netto_nieruch ogólnodost'!F79 -> 0 | G80: =(G$43-SUMPRODUCT('Koszty netto_nieruch ogólnodost'!G$58:G$68,'Koszty netto_nieruch ogólnodost'!G$71:G$81))*G67+'Koszty netto_nieruch ogólnodost'!G66*'Koszty netto_nieruch ogólnodost'!G79 -> 0 | H80: =(H$43-SUMPRODUCT('Koszty netto_nieruch ogólnodost'!H$58:H$68,'Koszty netto_nieruch ogólnodost'!H$71:H$81))*H67+'Koszty netto_nieruch ogólnodost'!H66*'Koszty netto_nieruch ogólnodost'!H79 -> 0 | I80: =(I$43-SUMPRODUCT('Koszty netto_nieruch ogólnodost'!I$58:I$68,'Koszty netto_nieruch ogólnodost'!I$71:I$81))*I67+'Koszty netto_nieruch ogólnodost'!I66*'Koszty netto_nieruch ogólnodost'!I79 -> 0 | J80: =(J$43-SUMPRODUCT('Koszty netto_nieruch ogólnodost'!J$58:J$68,'Koszty netto_nieruch ogólnodost'!J$71:J$81))*J67+'Koszty netto_nieruch ogólnodost'!J66*'Koszty netto_nieruch ogólnodost'!J79 -> 0 | K80: =(K$43-SUMPRODUCT('Koszty netto_nieruch ogólnodost'!K$58:K$68,'Koszty netto_nieruch ogólnodost'!K$71:K$81))*K67+'Koszty netto_nieruch ogólnodost'!K66*'Koszty netto_nieruch ogólnodost'!K79 -> 0 | L80: =(L$43-SUMPRODUCT('Koszty netto_nieruch ogólnodost'!L$58:L$68,'Koszty netto_nieruch ogólnodost'!L$71:L$81))*L67+'Koszty netto_nieruch ogólnodost'!L66*'Koszty netto_nieruch ogólnodost'!L79 -> 0 | M80: =(M$43-SUMPRODUCT('Koszty netto_nieruch ogólnodost'!M$58:M$68,'Koszty netto_nieruch ogólnodost'!M$71:M$81))*M67+'Koszty netto_nieruch ogólnodost'!M66*'Koszty netto_nieruch ogólnodost'!M79 -> 0 | N80: =(N$43-SUMPRODUCT('Koszty netto_nieruch ogólnodost'!N$58:N$68,'Koszty netto_nieruch ogólnodost'!N$71:N$81))*N67+'Koszty netto_nieruch ogólnodost'!N66*'Koszty netto_nieruch ogólnodost'!N79 -> 0 | O80: =(O$43-SUMPRODUCT('Koszty netto_nieruch ogólnodost'!O$58:O$68,'Koszty netto_nieruch ogólnodost'!O$71:O$81))*O67+'Koszty netto_nieruch ogólnodost'!O66*'Koszty netto_nieruch ogólnodost'!O79 -> 0
A81: 20 01 40 | C81: PLN | F81: =(F$43-SUMPRODUCT('Koszty netto_nieruch ogólnodost'!F$58:F$68,'Koszty netto_nieruch ogólnodost'!F$71:F$81))*F68+'Koszty netto_nieruch ogólnodost'!F67*'Koszty netto_nieruch ogólnodost'!F80 -> 0 | G81: =(G$43-SUMPRODUCT('Koszty netto_nieruch ogólnodost'!G$58:G$68,'Koszty netto_nieruch ogólnodost'!G$71:G$81))*G68+'Koszty netto_nieruch ogólnodost'!G67*'Koszty netto_nieruch ogólnodost'!G80 -> 0 | H81: =(H$43-SUMPRODUCT('Koszty netto_nieruch ogólnodost'!H$58:H$68,'Koszty netto_nieruch ogólnodost'!H$71:H$81))*H68+'Koszty netto_nieruch ogólnodost'!H67*'Koszty netto_nieruch ogólnodost'!H80 -> 0 | I81: =(I$43-SUMPRODUCT('Koszty netto_nieruch ogólnodost'!I$58:I$68,'Koszty netto_nieruch ogólnodost'!I$71:I$81))*I68+'Koszty netto_nieruch ogólnodost'!I67*'Koszty netto_nieruch ogólnodost'!I80 -> 0 | J81: =(J$43-SUMPRODUCT('Koszty netto_nieruch ogólnodost'!J$58:J$68,'Koszty netto_nieruch ogólnodost'!J$71:J$81))*J68+'Koszty netto_nieruch ogólnodost'!J67*'Koszty netto_nieruch ogólnodost'!J80 -> 0 | K81: =(K$43-SUMPRODUCT('Koszty netto_nieruch ogólnodost'!K$58:K$68,'Koszty netto_nieruch ogólnodost'!K$71:K$81))*K68+'Koszty netto_nieruch ogólnodost'!K67*'Koszty netto_nieruch ogólnodost'!K80 -> 0 | L81: =(L$43-SUMPRODUCT('Koszty netto_nieruch ogólnodost'!L$58:L$68,'Koszty netto_nieruch ogólnodost'!L$71:L$81))*L68+'Koszty netto_nieruch ogólnodost'!L67*'Koszty netto_nieruch ogólnodost'!L80 -> 0 | M81: =(M$43-SUMPRODUCT('Koszty netto_nieruch ogólnodost'!M$58:M$68,'Koszty netto_nieruch ogólnodost'!M$71:M$81))*M68+'Koszty netto_nieruch ogólnodost'!M67*'Koszty netto_nieruch ogólnodost'!M80 -> 0 | N81: =(N$43-SUMPRODUCT('Koszty netto_nieruch ogólnodost'!N$58:N$68,'Koszty netto_nieruch ogólnodost'!N$71:N$81))*N68+'Koszty netto_nieruch ogólnodost'!N67*'Koszty netto_nieruch ogólnodost'!N80 -> 0 | O81: =(O$43-SUMPRODUCT('Koszty netto_nieruch ogólnodost'!O$58:O$68,'Koszty netto_nieruch ogólnodost'!O$71:O$81))*O68+'Koszty netto_nieruch ogólnodost'!O67*'Koszty netto_nieruch ogólnodost'!O80 -> 0
A82: Inne | C82: PLN | F82: =(F$43-SUMPRODUCT('Koszty netto_nieruch ogólnodost'!F$58:F$68,'Koszty netto_nieruch ogólnodost'!F$71:F$81))*F69+'Koszty netto_nieruch ogólnodost'!F68*'Koszty netto_nieruch ogólnodost'!F81 -> 0 | G82: =(G$43-SUMPRODUCT('Koszty netto_nieruch ogólnodost'!G$58:G$68,'Koszty netto_nieruch ogólnodost'!G$71:G$81))*G69+'Koszty netto_nieruch ogólnodost'!G68*'Koszty netto_nieruch ogólnodost'!G81 -> 0 | H82: =(H$43-SUMPRODUCT('Koszty netto_nieruch ogólnodost'!H$58:H$68,'Koszty netto_nieruch ogólnodost'!H$71:H$81))*H69+'Koszty netto_nieruch ogólnodost'!H68*'Koszty netto_nieruch ogólnodost'!H81 -> 0 | I82: =(I$43-SUMPRODUCT('Koszty netto_nieruch ogólnodost'!I$58:I$68,'Koszty netto_nieruch ogólnodost'!I$71:I$81))*I69+'Koszty netto_nieruch ogólnodost'!I68*'Koszty netto_nieruch ogólnodost'!I81 -> 0 | J82: =(J$43-SUMPRODUCT('Koszty netto_nieruch ogólnodost'!J$58:J$68,'Koszty netto_nieruch ogólnodost'!J$71:J$81))*J69+'Koszty netto_nieruch ogólnodost'!J68*'Koszty netto_nieruch ogólnodost'!J81 -> 0 | K82: =(K$43-SUMPRODUCT('Koszty netto_nieruch ogólnodost'!K$58:K$68,'Koszty netto_nieruch ogólnodost'!K$71:K$81))*K69+'Koszty netto_nieruch ogólnodost'!K68*'Koszty netto_nieruch ogólnodost'!K81 -> 0 | L82: =(L$43-SUMPRODUCT('Koszty netto_nieruch ogólnodost'!L$58:L$68,'Koszty netto_nieruch ogólnodost'!L$71:L$81))*L69+'Koszty netto_nieruch ogólnodost'!L68*'Koszty netto_nieruch ogólnodost'!L81 -> 0 | M82: =(M$43-SUMPRODUCT('Koszty netto_nieruch ogólnodost'!M$58:M$68,'Koszty netto_nieruch ogólnodost'!M$71:M$81))*M69+'Koszty netto_nieruch ogólnodost'!M68*'Koszty netto_nieruch ogólnodost'!M81 -> 0 | N82: =(N$43-SUMPRODUCT('Koszty netto_nieruch ogólnodost'!N$58:N$68,'Koszty netto_nieruch ogólnodost'!N$71:N$81))*N69+'Koszty netto_nieruch ogólnodost'!N68*'Koszty netto_nieruch ogólnodost'!N81 -> 0 | O82: =(O$43-SUMPRODUCT('Koszty netto_nieruch ogólnodost'!O$58:O$68,'Koszty netto_nieruch ogólnodost'!O$71:O$81))*O69+'Koszty netto_nieruch ogólnodost'!O68*'Koszty netto_nieruch ogólnodost'!O81 -> 0
A84: Należna rekompensata według pozycji prac interwencyjnych
A85: wynajem pojemników | C85: PLN | F85: =F$44*'Prace interwencyjne'!$F3 -> 0 | G85: =G$44*'Prace interwencyjne'!$F3 -> 0 | H85: =H$44*'Prace interwencyjne'!$F3 -> 0 | I85: =I$44*'Prace interwencyjne'!$F3 -> 0 | J85: =J$44*'Prace interwencyjne'!$F3 -> 0 | K85: =K$44*'Prace interwencyjne'!$F3 -> 0 | L85: =L$44*'Prace interwencyjne'!$F3 -> 0 | M85: =M$44*'Prace interwencyjne'!$F3 -> 0 | N85: =N$44*'Prace interwencyjne'!$F3 -> 0 | O85: =O$44*'Prace interwencyjne'!$F3 -> 0
A86: wynajem pracowników | C86: PLN | F86: =F$44*'Prace interwencyjne'!$F4 -> 0 | G86: =G$44*'Prace interwencyjne'!$F4 -> 0 | H86: =H$44*'Prace interwencyjne'!$F4 -> 0 | I86: =I$44*'Prace interwencyjne'!$F4 -> 0 | J86: =J$44*'Prace interwencyjne'!$F4 -> 0 | K86: =K$44*'Prace interwencyjne'!$F4 -> 0 | L86: =L$44*'Prace interwencyjne'!$F4 -> 0 | M86: =M$44*'Prace interwencyjne'!$F4 -> 0 | N86: =N$44*'Prace interwencyjne'!$F4 -> 0 | O86: =O$44*'Prace interwencyjne'!$F4 -> 0
A87: wynajem ładowarki | C87: PLN | F87: =F$44*'Prace interwencyjne'!$F5 -> 0 | G87: =G$44*'Prace interwencyjne'!$F5 -> 0 | H87: =H$44*'Prace interwencyjne'!$F5 -> 0 | I87: =I$44*'Prace interwencyjne'!$F5 -> 0 | J87: =J$44*'Prace interwencyjne'!$F5 -> 0 | K87: =K$44*'Prace interwencyjne'!$F5 -> 0 | L87: =L$44*'Prace interwencyjne'!$F5 -> 0 | M87: =M$44*'Prace interwencyjne'!$F5 -> 0 | N87: =N$44*'Prace interwencyjne'!$F5 -> 0 | O87: =O$44*'Prace interwencyjne'!$F5 -> 0
A88: wynajem samochodu dostawczego | C88: PLN | F88: =F$44*'Prace interwencyjne'!$F6 -> 0 | G88: =G$44*'Prace interwencyjne'!$F6 -> 0 | H88: =H$44*'Prace interwencyjne'!$F6 -> 0 | I88: =I$44*'Prace interwencyjne'!$F6 -> 0 | J88: =J$44*'Prace interwencyjne'!$F6 -> 0 | K88: =K$44*'Prace interwencyjne'!$F6 -> 0 | L88: =L$44*'Prace interwencyjne'!$F6 -> 0 | M88: =M$44*'Prace interwencyjne'!$F6 -> 0 | N88: =N$44*'Prace interwencyjne'!$F6 -> 0 | O88: =O$44*'Prace interwencyjne'!$F6 -> 0
A89: wynajem samochodu ciężarowego | C89: PLN | F89: =F$44*'Prace interwencyjne'!$F7 -> 0 | G89: =G$44*'Prace interwencyjne'!$F7 -> 0 | H89: =H$44*'Prace interwencyjne'!$F7 -> 0 | I89: =I$44*'Prace interwencyjne'!$F7 -> 0 | J89: =J$44*'Prace interwencyjne'!$F7 -> 0 | K89: =K$44*'Prace interwencyjne'!$F7 -> 0 | L89: =L$44*'Prace interwencyjne'!$F7 -> 0 | M89: =M$44*'Prace interwencyjne'!$F7 -> 0 | N89: =N$44*'Prace interwencyjne'!$F7 -> 0 | O89: =O$44*'Prace interwencyjne'!$F7 -> 0
A91: STAWKI
A92: 20 03 01 | C92: PLN/Mg | F92: =IFERROR(F72/F45,0) -> 0 | G92: 0 | H92: 0 | I92: 0 | J92: 0 | K92: 0 | L92: =IFERROR(L72/L45,0) -> 0 | M92: 0 | N92: 0 | O92: 0
A93: 20 03 07 | C93: PLN/Mg | F93: =IFERROR(F73/F46,0) -> 0 | G93: 0 | H93: 0 | I93: 0 | J93: 0 | K93: 0 | L93: 0 | M93: 0 | N93: 0 | O93: 0
A94: 20 01 35, 20 01 36 | C94: PLN/Mg | F94: =IFERROR(F74/F47,0) -> 0 | G94: 0 | H94: 0 | I94: 0 | J94: 0 | K94: 0 | L94: 0 | M94: 0 | N94: 0 | O94: 0
A95: 17 01 podgrupa | C95: PLN/Mg | F95: =IFERROR(F75/F48,0) -> 0 | G95: 0 | H95: 0 | I95: 0 | J95: 0 | K95: 0 | L95: 0 | M95: 0 | N95: 0 | O95: 0
A96: 16 01 03 | C96: PLN/Mg | F96: =IFERROR(F76/F49,0) -> 0 | G96: 0 | H96: 0 | I96: 0 | J96: 0 | K96: 0 | L96: 0 | M96: 0 | N96: 0 | O96: 0
A97: 20 03 99 | C97: PLN/Mg | F97: =IFERROR(F77/F50,0) -> 0 | G97: 0 | H97: 0 | I97: 0 | J97: 0 | K97: 0 | L97: 0 | M97: 0 | N97: 0 | O97: 0
A98: 20 01 01 | C98: PLN/Mg | F98: =IFERROR(F78/F51,0) -> 0 | G98: 0 | H98: 0 | I98: 0 | J98: 0 | K98: 0 | L98: 0 | M98: 0 | N98: 0 | O98: 0
A99: 20 01 02 | C99: PLN/Mg | F99: =IFERROR(F79/F52,0) -> 0 | G99: 0 | H99: 0 | I99: 0 | J99: 0 | K99: 0 | L99: 0 | M99: 0 | N99: 0 | O99: 0
A100: 15 01 02 | C100: PLN/Mg | F100: =IFERROR(F80/F53,0) -> 0 | G100: 0 | H100: 0 | I100: 0 | J100: 0 | K100: 0 | L100: 0 | M100: 0 | N100: 0 | O100: 0
A101: 20 01 40 | C101: PLN/Mg | F101: =IFERROR(F81/F54,0) -> 0 | G101: 0 | H101: 0 | I101: 0 | J101: 0 | K101: 0 | L101: 0 | M101: 0 | N101: 0 | O101: 0
A102: Inne | C102: PLN/Mg | F102: =IFERROR(F82/F55,0) -> 0 | G102: 0 | H102: 0 | I102: 0 | J102: 0 | K102: 0 | L102: 0 | M102: 0 | N102: 0 | O102: 0
A103: Prace interwencyjne – wynajem pojemników | C103: PLN/szt. | F103: 0 | G103: 0 | H103: 0 | I103: 0 | J103: 0 | K103: 0 | L103: 0 | M103: 0 | N103: 0 | O103: 0
A104: Prace interwencyjne – wynajem pracowników | C104: PLN/godz. | F104: 0 | G104: 0 | H104: 0 | I104: 0 | J104: 0 | K104: 0 | L104: 0 | M104: 0 | N104: 0 | O104: 0
A105: Prace interwencyjne – wynajem ładowarki | C105: PLN/godz. | F105: 0 | G105: 0 | H105: 0 | I105: 0 | J105: 0 | K105: 0 | L105: 0 | M105: 0 | N105: 0 | O105: 0
A106: Prace interwencyjne – wynajem samochodu dostawczego | C106: PLN/km | F106: 0 | G106: 0 | H106: 0 | I106: 0 | J106: 0 | K106: 0 | L106: 0 | M106: 0 | N106: 0 | O106: 0
A107: Prace interwencyjne – wynajem samochodu ciężarowego | C107: PLN/km | F107: 0 | G107: 0 | H107: 0 | I107: 0 | J107: 0 | K107: 0 | L107: 0 | M107: 0 | N107: 0 | O107: 0
K108: 0
